fUSD/lending_fUSD_20260109
["ID","MTS","AMOUNT","RATE_DAILY","PERIOD"]
[401135884,1767963032188,-574.6,0.00012472,2]
[401135885,1767963032199,-2613.39639343,0.00012472,2]
[401135886,1767963032208,-154.85009561,0.0001251,2]
[401135887,1767963032246,-297.51990439,0.0001251,2]
[401135888,1767963032255,-300.0,0.00012571,2]
[401135889,1767963032265,-167.99866609,0.0001265,2]
[401135890,1767963032275,-500.0,0.00012851,2]
[401135891,1767963032284,-190.56748315,0.00012851,2]
[401135892,1767963032293,-469.58304509,0.00012951,2]
[401135893,1767963032302,-1200.0,0.00012962,2]
[401135894,1767963032311,-72.63200073,0.00012963,2]
[401135895,1767963032322,-1090.52799927,0.00012963,2]
[401135896,1767963032331,-190.56748313,0.00013088,2]
[401135897,1767963032340,-300.0,0.00013224,2]
[401135898,1767963032349,-286.0,0.00013224,2]
[401135899,1767963032358,-78847.18617234,0.00013225,2]
[401135900,1767963032372,-13639.03406531,0.00013225,2]
[401135901,1767963037637,-415.15147597,0.00013224,2]
[401135902,1767963037695,-87.241706,0.00013224,2]
[401135903,1767963037706,-213.358294,0.00013224,2]
[401135904,1767963037754,-286.641706,0.00013224,2]
[401135905,1767963037764,-500.0,0.00013224,2]
[401135906,1767963037773,-500.0,0.00013224,2]
[401135907,1767963037783,-500.0,0.00013224,2]
[401135908,1767963037793,-500.0,0.00013224,2]
[401135909,1767963037802,-500.0,0.00013224,2]
[401135910,1767963037811,-500.0,0.00013224,2]
[401135911,1767963037822,-314.66239469,0.00013224,2]
[401135912,1767963037871,-185.33760531,0.00013224,2]
[401135914,1767963037880,-120.89289654,0.00013224,2]
[401135916,1767963037892,-379.10710346,0.00013224,2]
[401135918,1767963037902,-179.26593225,0.00013224,2]
[401135920,1767963037911,-500.0,0.00013224,2]
[401135921,1767963037919,-500.0,0.00013224,2]
[401135923,1767963037929,-500.0,0.00013224,2]
[401135925,1767963037939,-500.0,0.00013224,2]
[401135927,1767963037948,-500.0,0.00013224,2]
[401135929,1767963037957,-6033.32018459,0.00013225,2]
[401135932,1767963037976,-2748.67177887,0.00013225,2]
[401136086,1767963039703,-4133.84343981,0.00013225,2]
[401136089,1767963039714,-9571.77246531,0.00013225,2]
[401136091,1767963039726,-2418.0,0.00013225,2]
[401136109,1767963039886,-33841.96497514,0.00013225,2]
[401136111,1767963039897,-449.67806579,0.00013225,2]
[401136112,1767963039907,-27336.69674415,0.00013225,2]
[401136159,1767963040322,-571.17851128,0.00013225,2]
[401136161,1767963040336,-820408.65359741,0.00013225,2]
[401136163,1767963040346,-150.0,0.0001323,2]
[401136165,1767963040360,-332.1524,0.00013325,2]
[401136167,1767963040369,-167.96126191,0.00013325,2]
[401136169,1767963040379,-8308.86094767,0.00013325,2]
[401136171,1767963040388,-17467.80396496,0.00013325,2]
[401136173,1767963040397,-190.56748313,0.00013325,2]
[401136175,1767963040406,-578.3658616,0.00013325,2]
[401136177,1767963040415,-200.0,0.00013417,2]
[401136179,1767963040425,-500.0,0.00013417,2]
[401136181,1767963040434,-500.0,0.00013417,2]
[401136183,1767963040444,-500.0,0.00013417,2]
[401136184,1767963040453,-500.0,0.00013417,2]
[401136185,1767963040462,-500.0,0.00013417,2]
[401136186,1767963040472,-500.0,0.00013417,2]
[401136187,1767963040481,-500.0,0.00013417,2]
[401136188,1767963040491,-500.0,0.00013417,2]
[401136189,1767963040501,-500.0,0.00013417,2]
[401136190,1767963040511,-500.0,0.00013417,2]
[401136191,1767963040520,-500.0,0.00013417,2]
[401136192,1767963040529,-500.0,0.00013417,2]
[401136193,1767963040539,-500.0,0.00013417,2]
[401136194,1767963040548,-500.0,0.00013417,2]
[401136195,1767963040560,-500.0,0.00013417,2]
[401136197,1767963040569,-577.21725198,0.00013417,2]
[401136199,1767963040578,-151.0,0.00013417,2]
[401136200,1767963040588,-151.0,0.00013417,2]
[401136202,1767963040597,-151.0,0.00013417,2]
[401136204,1767963040606,-151.0,0.00013417,2]
[401136206,1767963040615,-151.0,0.00013417,2]
[401136208,1767963040624,-151.0,0.00013417,2]
[401136210,1767963040634,-500.0,0.00013417,2]
[401136211,1767963040643,-200.0,0.00013417,2]
[401136213,1767963040652,-200.0,0.00013417,2]
[401136215,1767963040661,-151.0,0.00013417,2]
[401136217,1767963040671,-151.0,0.00013417,2]
[401136218,1767963040680,-151.0,0.00013417,2]
[401136219,1767963040689,-151.0,0.00013417,2]
[401136220,1767963040698,-151.0,0.00013417,2]
[401136221,1767963040708,-500.0,0.00013417,2]
[401136222,1767963040718,-1007.72,0.00013421,2]
[401136223,1767963040727,-7411.4566,0.00013425,2]
[401136225,1767963040736,-1000.0,0.00013425,2]
[401136227,1767963040750,-200.0,0.00013515,2]
[401136229,1767963040760,-2000.0,0.00013516,2]
[401136230,1767963040769,-200.0,0.00013516,2]
[401136232,1767963040779,-356.78249281,0.00013573,2]
[401136233,1767963040789,-164663.1150865,0.00013583,2]
[401136234,1767963040798,-3147.1185389,0.00013583,2]
[401136235,1767963040807,-600.0,0.000136,2]
[401136236,1767963040818,-300.0,0.00013611,2]
[401136237,1767963040828,-250.0,0.00013611,2]
[401136238,1767963040838,-166.66,0.00013625,2]
[401136239,1767963040847,-500.0,0.00013644,2]
[401136240,1767963040856,-158.55612686,0.00013691,2]
[401136241,1767963040866,-160.97517369,0.00013698,2]
[401136242,1767963040876,-8308.86094761,0.00013833,2]
[401136243,1767963040885,-17467.80396492,0.00013833,2]
[401136244,1767963040895,-166.66,0.00013912,2]
[401136245,1767963040903,-207.82,0.00013913,2]
[401136246,1767963040913,-500.0,0.00014055,2]
[401136247,1767963040922,-999.0,0.00014063,3]
[401136248,1767963040932,-452.37,0.00014073,2]
[401136249,1767963040941,-166.66,0.00014199,2]
[401136250,1767963040951,-1680.0,0.00014258,2]
[401136251,1767963040960,-578.3658616,0.00014287,2]
[401136252,1767963040969,-255.0,0.00014341,2]
[401136253,1767963040978,-8308.86094761,0.00014342,2]
[401136254,1767963040987,-17467.80396492,0.00014342,2]
[401136255,1767963040996,-156.75,0.0001441,2]
[401136256,1767963041006,-167.96126188,0.00014469,2]
[401136257,1767963041017,-166.66,0.00014485,2]
[401136258,1767963041027,-420.0,0.00014499,2]
[401136259,1767963041036,-200.0,0.00014503,2]
[401136260,1767963041045,-150.0,0.00014561,2]
[401136261,1767963041055,-166.66,0.00014566,2]
[401136262,1767963041066,-500.0,0.00014763,2]
[401136263,1767963041076,-166.66,0.00014772,2]
[401136264,1767963041085,-8308.86094761,0.0001485,2]
[401136265,1767963041094,-17467.80396492,0.0001485,2]
[401136266,1767963041103,-151.0,0.0001485,2]
[401136267,1767963041112,-151.0,0.0001485,2]
[401136268,1767963041122,-151.0,0.0001485,2]
[401136269,1767963041131,-151.0,0.0001485,2]
[401136270,1767963041149,-4417.0,0.00014868,2]
[401136271,1767963041161,-19411.98603844,0.00015,2]
[401136272,1767963041171,-151.0,0.00015016,2]
[401136273,1767963041181,-151.0,0.00015016,2]
[401136274,1767963041191,-151.0,0.00015018,2]
[401136275,1767963041200,-151.0,0.00015018,2]
[401136276,1767963041210,-304.84,0.00015052,2]
[401136277,1767963041220,-166.66,0.00015059,2]
[401136278,1767963041229,-151.0,0.00015068,2]
[401136279,1767963041240,-151.0,0.00015068,2]
[401136280,1767963041250,-151.0,0.00015068,2]
[401136281,1767963041259,-151.0,0.00015068,2]
[401136282,1767963041269,-151.0,0.00015068,2]
[401136283,1767963041279,-151.0,0.00015068,2]
[401136284,1767963041288,-151.0,0.00015068,2]
[401136285,1767963041298,-151.0,0.00015068,2]
[401136286,1767963041308,-225.825426,0.00015068,2]
[401136287,1767963041317,-159.05,0.00015168,2]
[401136288,1767963041327,-3240.0,0.00015246,2]
[401136289,1767963041336,-578.3658616,0.00015248,2]
[401136290,1767963041346,-150.0,0.00015266,2]
[401136291,1767963041355,-150.0,0.00015266,2]
[401136292,1767963041365,-150.0,0.00015266,2]
[401136293,1767963041374,-150.0,0.00015266,2]
[401136294,1767963041384,-150.0,0.00015266,2]
[401136295,1767963041394,-150.0,0.00015266,2]
[401136296,1767963041403,-150.0,0.00015266,2]
[401136297,1767963041413,-150.0,0.00015266,2]
[401136298,1767963041422,-555.93,0.00015267,2]
[401136299,1767963041432,-171.25,0.00015267,2]
[401136300,1767963041441,-171.4,0.00015267,2]
[401136301,1767963041451,-156.75,0.00015311,2]
[401136302,1767963041460,-4489.05977845,0.00015348,2]
[401136307,1767963045280,-322.23602863,0.0001313,2]
[401136308,1767963045290,-151.0,0.00015068,2]
[401136309,1767963045300,-32252.24746135,0.00015348,2]
[401136310,1767963045309,-151.0,0.00015358,2]
[401136311,1767963045319,-151.0,0.00015358,2]
[401136312,1767963045328,-151.0,0.00015358,2]
[401136313,1767963045338,-151.0,0.00015358,2]
[401136314,1767963045347,-8308.86094761,0.00015358,2]
[401136315,1767963045357,-17467.80396492,0.00015358,2]
[401136316,1767963045367,-166.66,0.00015368,2]
[401136317,1767963045376,-180.0,0.00015374,2]
[401136318,1767963045386,-322.6107,0.00015487,2]
[401136319,1767963045396,-8882.6885148,0.00015487,2]
[401136320,1767963045405,-553.64373807,0.00015487,2]
[401136321,1767963045415,-190.0,0.00015545,2]
[401136322,1767963045424,-167.96126188,0.00015613,2]
[401136323,1767963045434,-452.37,0.00015637,2]
[401136324,1767963045443,-3709.65116184,0.0001564,2]
[401136325,1767963045453,-2351.0,0.00015684,2]
[401136326,1767963045463,-8198.0937684,0.00015741,2]
[401136327,1767963045473,-304.84,0.00015804,2]
[401136328,1767963045482,-8308.86094761,0.00015867,2]
[401136329,1767963045492,-17467.80396492,0.00015867,2]
[401136330,1767963045501,-587.0,0.00015897,2]
[401136331,1767963045511,-1898.72069679,0.000159,2]
[401136332,1767963045520,-1898.72069675,0.000159,2]
[401136333,1767963045530,-1898.72069675,0.000159,2]
[401136334,1767963045539,-1898.72069675,0.000159,2]
[401136335,1767963045549,-1898.72069675,0.000159,2]
[401136336,1767963045559,-1000.0,0.00015918,2]
[401136337,1767963045568,-1853.0830489,0.00015925,2]
[401136338,1767963045578,-168.0,0.00015991,2]
[401136339,1767963045587,-2165.0,0.00016012,2]
[401136340,1767963045597,-2165.0,0.00016027,2]
[401136341,1767963045606,-200.0,0.00016029,2]
[401136342,1767963045623,-574.12855637,0.00016035,2]
[401136343,1767963045633,-168.0,0.00016042,2]
[401136344,1767963045642,-160.67,0.00016088,2]
[401136345,1767963045652,-150.0,0.00016088,2]
[401136346,1767963045663,-150.0,0.00016108,2]
[401136347,1767963045673,-150.0,0.00016108,2]
[401136348,1767963045682,-150.0,0.00016108,2]
[401136349,1767963045692,-1951.93814697,0.00016109,2]
[401136350,1767963045702,-168.0,0.00016138,2]
[401136351,1767963045713,-166.66,0.00016169,2]
[401136352,1767963045722,-2165.0,0.00016191,2]
[401136353,1767963045731,-157.04784412,0.000162,2]
[401136354,1767963045742,-151.0,0.000162,2]
[401136355,1767963045754,-185.23706483,0.000162,2]
[401136356,1767963045771,-156.75,0.00016211,2]
[401136357,1767963045786,-1330.0,0.00016217,2]
[401136358,1767963045795,-624.081,0.00016217,2]
[401136359,1767963045805,-3603.334,0.00016217,2]
[401136360,1767963045815,-528.055,0.00016217,2]
[401136361,1767963045824,-1287.495,0.00016217,2]
[401136362,1767963045833,-6553.0,0.00016217,2]
[401136363,1767963045843,-566.0,0.00016217,2]
[401136364,1767963045852,-1312.0,0.00016217,2]
[401136365,1767963045861,-2459.15,0.00016217,2]
[401136366,1767963045871,-250.0,0.00016217,2]
[401136367,1767963045880,-1066.30640651,0.00016228,5]
[401136368,1767963045889,-152.0,0.00016319,3]
[401136370,1767963045899,-268.90000538,0.00016338,2]
[401136371,1767963045908,-151.0,0.00016338,2]
[401136372,1767963045918,-151.0,0.00016338,2]
[401136373,1767963045928,-151.0,0.00016338,2]
[401136374,1767963045937,-10000.0,0.00016338,2]
[401136375,1767963045947,-8308.86094761,0.00016375,2]
[401136377,1767963045957,-17467.80396492,0.00016375,2]
[401136379,1767963045966,-150.0,0.00016375,2]
[401136381,1767963045975,-151.0,0.00016438,2]
[401136383,1767963045984,-151.0,0.00016438,2]
[401136384,1767963045994,-151.0,0.00016438,2]
[401136385,1767963046003,-151.0,0.00016438,2]
[401136387,1767963046013,-151.0,0.00016438,2]
[401136389,1767963046022,-151.0,0.00016438,2]
[401136391,1767963046031,-16444.6,0.00016438,2]
[401136393,1767963046040,-151.000016,0.00016438,2]
[401136395,1767963046050,-282.584411,0.00016438,2]
[401136397,1767963046060,-158.994153,0.00016438,2]
[401136399,1767963046069,-336.389556,0.00016438,2]
[401136401,1767963046078,-336.389556,0.00016438,2]
[401136403,1767963046087,-336.389556,0.00016438,2]
[401136405,1767963046097,-336.389556,0.00016438,2]
[401136407,1767963046107,-336.389556,0.00016438,2]
[401136409,1767963046116,-336.389556,0.00016438,2]
[401136411,1767963046126,-336.389556,0.00016438,2]
[401136413,1767963046135,-336.389556,0.00016438,2]
[401136416,1767963046144,-336.389556,0.00016438,2]
[401136417,1767963046154,-336.389556,0.00016438,2]
[401136419,1767963046163,-336.389556,0.00016438,2]
[401136422,1767963046175,-336.389556,0.00016438,2]
[401136424,1767963046184,-336.389556,0.00016438,2]
[401136425,1767963046193,-336.389556,0.00016438,2]
[401136427,1767963046203,-336.389556,0.00016438,2]
[401136429,1767963046211,-336.389556,0.00016438,2]
[401136430,1767963046221,-336.389556,0.00016438,2]
[401136431,1767963046230,-336.389556,0.00016438,2]
[401136432,1767963046239,-336.389556,0.00016438,2]
[401136433,1767963046249,-336.389566,0.00016438,2]
[401136434,1767963046259,-151.0,0.00016438,2]
[401136435,1767963046268,-151.0,0.00016438,2]
[401136436,1767963046278,-261.23,0.00016438,2]
[401136437,1767963046287,-486.839283,0.00016438,2]
[401136438,1767963046297,-486.839283,0.00016438,2]
[401136439,1767963046306,-486.839283,0.00016438,2]
[401136440,1767963046317,-486.839283,0.00016438,2]
[401136441,1767963046326,-486.839283,0.00016438,2]
[401136442,1767963046336,-486.839283,0.00016438,2]
[401136443,1767963046345,-486.839283,0.00016438,2]
[401136444,1767963046356,-486.839283,0.00016438,2]
[401136445,1767963046365,-486.839283,0.00016438,2]
[401136446,1767963046374,-486.839283,0.00016438,2]
[401136447,1767963046383,-486.839283,0.00016438,2]
[401136448,1767963046393,-486.839283,0.00016438,2]
[401136449,1767963046402,-486.839283,0.00016438,2]
[401136450,1767963046412,-486.839283,0.00016438,2]
[401136451,1767963046422,-486.839283,0.00016438,2]
[401136452,1767963046432,-486.839283,0.00016438,2]
[401136453,1767963046441,-486.839283,0.00016438,2]
[401136454,1767963046450,-486.839283,0.00016438,2]
[401136456,1767963046460,-486.839283,0.00016438,2]
[401136458,1767963046469,-486.839281,0.00016438,2]
[401136460,1767963046478,-193.481059,0.00016438,2]
[401136462,1767963046487,-151.0,0.00016438,2]
[401136464,1767963046498,-151.0,0.00016438,2]
[401136466,1767963046507,-151.0,0.00016438,2]
[401136468,1767963046516,-151.0,0.00016438,2]
[401136470,1767963046525,-151.0,0.00016438,2]
[401136472,1767963046534,-245.0,0.00016438,2]
[401136474,1767963046544,-151.0,0.00016438,2]
[401136476,1767963046554,-151.0,0.00016438,2]
[401136478,1767963046563,-325.570289,0.00016438,2]
[401136480,1767963046573,-325.570289,0.00016438,2]
[401136482,1767963046582,-325.570289,0.00016438,2]
[401136484,1767963046591,-325.570289,0.00016438,2]
[401136486,1767963046601,-325.570289,0.00016438,2]
[401136488,1767963046611,-325.570289,0.00016438,2]
[401136490,1767963046620,-260.048869,0.00016438,2]
[401136492,1767963046629,-325.570289,0.00016438,2]
[401136494,1767963046639,-260.048869,0.00016438,2]
[401136496,1767963046648,-325.570289,0.00016438,2]
[401136498,1767963046657,-260.048869,0.00016438,2]
[401136500,1767963046667,-325.570289,0.00016438,2]
[401136502,1767963046676,-260.048869,0.00016438,2]
[401136504,1767963046685,-325.570289,0.00016438,2]
[401136506,1767963046694,-260.048869,0.00016438,2]
[401136508,1767963046704,-325.570289,0.00016438,2]
[401136510,1767963046714,-260.048869,0.00016438,2]
[401136512,1767963046724,-325.570289,0.00016438,2]
[401136514,1767963046733,-260.048869,0.00016438,2]
[401136516,1767963046744,-325.570289,0.00016438,2]
[401136518,1767963046755,-260.048869,0.00016438,2]
[401136520,1767963046764,-325.570289,0.00016438,2]
[401136522,1767963046773,-260.048869,0.00016438,2]
[401136524,1767963046782,-325.570289,0.00016438,2]
[401136526,1767963046792,-260.048869,0.00016438,2]
[401136528,1767963046801,-325.570289,0.00016438,2]
[401136530,1767963046811,-260.048869,0.00016438,2]
[401136532,1767963046822,-325.570289,0.00016438,2]
[401136534,1767963046830,-260.048869,0.00016438,2]
[401136536,1767963046840,-325.570289,0.00016438,2]
[401136538,1767963046849,-260.048869,0.00016438,2]
[401136540,1767963046858,-325.570289,0.00016438,2]
[401136542,1767963046867,-260.048869,0.00016438,2]
[401136544,1767963046879,-325.570294,0.00016438,2]
[401136546,1767963046889,-260.048869,0.00016438,2]
[401136547,1767963046898,-260.048869,0.00016438,2]
[401136549,1767963046907,-260.048869,0.00016438,2]
[401136551,1767963046917,-974.246476,0.00016438,2]
[401136553,1767963046926,-260.048869,0.00016438,2]
[401136555,1767963046935,-260.048869,0.00016438,2]
[401136557,1767963046945,-974.246476,0.00016438,2]
[401136559,1767963046954,-260.048877,0.00016438,2]
[401136561,1767963046963,-974.246476,0.00016438,2]
[401136563,1767963046973,-974.246476,0.00016438,2]
[401136565,1767963046983,-974.246476,0.00016438,2]
[401136567,1767963046992,-974.246476,0.00016438,2]
[401136570,1767963047002,-974.246476,0.00016438,2]
[401136572,1767963047011,-974.246476,0.00016438,2]
[401136574,1767963047021,-277.878923,0.00016438,2]
[401136576,1767963047030,-974.246476,0.00016438,2]
[401136578,1767963047039,-974.246476,0.00016438,2]
[401136580,1767963047049,-974.246476,0.00016438,2]
[401136582,1767963047058,-974.246476,0.00016438,2]
[401136584,1767963047068,-974.246476,0.00016438,2]
[401136585,1767963047077,-974.246476,0.00016438,2]
[401136587,1767963047086,-974.246476,0.00016438,2]
[401136589,1767963047096,-974.246476,0.00016438,2]
[401136592,1767963047106,-974.246476,0.00016438,2]
[401136594,1767963047115,-974.246476,0.00016438,2]
[401136596,1767963047124,-974.246476,0.00016438,2]
[401136598,1767963047133,-974.246468,0.00016438,2]
[401136600,1767963047142,-151.0,0.00016438,2]
[401136601,1767963047152,-151.0,0.00016438,2]
[401136603,1767963047162,-151.0,0.00016438,2]
[401136606,1767963047171,-151.0,0.00016438,2]
[401136608,1767963047180,-151.0,0.00016438,2]
[401136609,1767963047189,-151.0,0.00016438,2]
[401136611,1767963047199,-151.0,0.00016438,2]
[401136613,1767963047208,-151.0,0.00016438,2]
[401136614,1767963047218,-295.950679,0.00016438,2]
[401136615,1767963047227,-165.977464,0.00016438,2]
[401136616,1767963047236,-151.0,0.00016438,2]
[401136617,1767963047246,-151.0,0.00016438,2]
[401136618,1767963047256,-151.0,0.00016438,2]
[401136619,1767963047266,-196.435623,0.00016438,2]
[401136620,1767963047275,-270.041008,0.00016438,2]
[401136621,1767963047285,-270.041008,0.00016438,2]
[401136622,1767963047294,-270.041008,0.00016438,2]
[401136623,1767963047303,-270.041008,0.00016438,2]
[401136624,1767963047313,-270.041008,0.00016438,2]
[401136625,1767963047323,-270.041008,0.00016438,2]
[401136626,1767963047332,-270.041008,0.00016438,2]
[401136627,1767963047341,-270.041008,0.00016438,2]
[401136628,1767963047351,-151.0,0.00016438,2]
[401136629,1767963047360,-151.0,0.00016438,2]
[401136630,1767963047369,-270.041008,0.00016438,2]
[401136631,1767963047378,-151.0,0.00016438,2]
[401136632,1767963047387,-270.041008,0.00016438,2]
[401136633,1767963047396,-151.0,0.00016438,2]
[401136634,1767963047406,-151.0,0.00016438,2]
[401136635,1767963047415,-270.041008,0.00016438,2]
[401136636,1767963047426,-205.051786,0.00016438,2]
[401136637,1767963047437,-270.041008,0.00016438,2]
[401136638,1767963047446,-151.0,0.00016438,2]
[401136639,1767963047456,-270.041008,0.00016438,2]
[401136640,1767963047466,-151.0,0.00016438,2]
[401136641,1767963047476,-270.041008,0.00016438,2]
[401136642,1767963047486,-151.0,0.00016438,2]
[401136643,1767963047496,-270.041008,0.00016438,2]
[401136644,1767963047507,-151.0,0.00016438,2]
[401136645,1767963047517,-270.041008,0.00016438,2]
[401136646,1767963047529,-151.0,0.00016438,2]
[401136647,1767963047539,-270.041008,0.00016438,2]
[401136648,1767963047549,-151.0,0.00016438,2]
[401136649,1767963047559,-270.041008,0.00016438,2]
[401136650,1767963047569,-270.041008,0.00016438,2]
[401136651,1767963047579,-151.0,0.00016438,2]
[401136652,1767963047588,-270.041016,0.00016438,2]
[401136653,1767963047599,-151.0,0.00016438,2]
[401136654,1767963047608,-151.0,0.00016438,2]
[401136655,1767963047618,-151.0,0.00016438,2]
[401136656,1767963047628,-151.0,0.00016438,2]
[401136657,1767963047638,-151.0,0.00016438,2]
[401136658,1767963047647,-151.0,0.00016438,2]
[401136659,1767963047658,-151.0,0.00016438,2]
[401136660,1767963047668,-151.0,0.00016438,2]
[401136661,1767963047948,-151.0,0.00016438,2]
[401136662,1767963047967,-241.264021,0.00016438,2]
[401136663,1767963047977,-151.0,0.00016438,2]
[401136664,1767963047987,-151.0,0.00016438,2]
[401136665,1767963047996,-151.0,0.00016438,2]
[401136666,1767963048006,-151.0,0.00016438,2]
[401136667,1767963048015,-151.0,0.00016438,2]
[401136668,1767963048024,-151.0,0.00016438,2]
[401136669,1767963048034,-151.0,0.00016438,2]
[401136670,1767963048043,-151.0,0.00016438,2]
[401136671,1767963048052,-151.0,0.00016438,2]
[401136672,1767963048062,-241.406334,0.00016438,2]
[401136673,1767963048072,-151.0,0.00016438,2]
[401136674,1767963048082,-151.0,0.00016438,2]
[401136675,1767963048091,-151.0,0.00016438,2]
[401136676,1767963048102,-169.503369,0.00016438,2]
[401136677,1767963048115,-875.130412,0.00016438,2]
[401136678,1767963048124,-875.130412,0.00016438,2]
[401136679,1767963048135,-875.130412,0.00016438,2]
[401136680,1767963048144,-875.130412,0.00016438,2]
[401136681,1767963048154,-875.130412,0.00016438,2]
[401136682,1767963048165,-875.130412,0.00016438,2]
[401136683,1767963048175,-875.130412,0.00016438,2]
[401136684,1767963048184,-875.130412,0.00016438,2]
[401136685,1767963048193,-875.130412,0.00016438,2]
[401136686,1767963048203,-875.130412,0.00016438,2]
[401136687,1767963048213,-875.130412,0.00016438,2]
[401136688,1767963048222,-875.130412,0.00016438,2]
[401136689,1767963048232,-875.130412,0.00016438,2]
[401136690,1767963048241,-875.130412,0.00016438,2]
[401136691,1767963048251,-875.130412,0.00016438,2]
[401136692,1767963048261,-875.130412,0.00016438,2]
[401136693,1767963048271,-875.130412,0.00016438,2]
[401136694,1767963048281,-875.130412,0.00016438,2]
[401136695,1767963048291,-875.130412,0.00016438,2]
[401136696,1767963048302,-875.130404,0.00016438,2]
[401136697,1767963048312,-151.0,0.00016438,2]
[401136698,1767963048322,-151.0,0.00016438,2]
[401136699,1767963048331,-151.0,0.00016438,2]
[401136700,1767963048341,-151.0,0.00016438,2]
[401136701,1767963048350,-151.0,0.00016438,2]
[401136702,1767963048359,-151.0,0.00016438,2]
[401136703,1767963048370,-151.0,0.00016438,2]
[401136704,1767963048379,-151.0,0.00016438,2]
[401136705,1767963048389,-151.0,0.00016438,2]
[401136706,1767963048398,-151.0,0.00016438,2]
[401136707,1767963048407,-280.30467,0.00016438,2]
[401136708,1767963048416,-151.0,0.00016438,2]
[401136709,1767963048427,-151.0,0.00016438,2]
[401136710,1767963048436,-151.0,0.00016438,2]
[401136711,1767963048449,-151.0,0.00016438,2]
[401136712,1767963048460,-151.0,0.00016438,2]
[401136713,1767963048470,-151.0,0.00016438,2]
[401136714,1767963048479,-151.0,0.00016438,2]
[401136715,1767963048488,-151.0,0.00016438,2]
[401136716,1767963048498,-151.0,0.00016438,2]
[401136717,1767963048508,-151.0,0.00016438,2]
[401136718,1767963048517,-151.0,0.00016438,2]
[401136719,1767963048526,-690.446226,0.00016438,2]
[401136720,1767963048535,-151.0,0.00016438,2]
[401136721,1767963048544,-151.0,0.00016438,2]
[401136722,1767963048554,-690.446226,0.00016438,2]
[401136723,1767963048563,-151.0,0.00016438,2]
[401136724,1767963048572,-170.371691,0.00016438,2]
[401136725,1767963048583,-690.446226,0.00016438,2]
[401136726,1767963048592,-151.0,0.00016438,2]
[401136727,1767963048601,-690.446226,0.00016438,2]
[401136728,1767963048610,-151.0,0.00016438,2]
[401136729,1767963048619,-690.446226,0.00016438,2]
[401136730,1767963048629,-151.0,0.00016438,2]
[401136731,1767963048639,-690.446226,0.00016438,2]
[401136732,1767963048649,-151.0,0.00016438,2]
[401136733,1767963048659,-690.446226,0.00016438,2]
[401136734,1767963048668,-151.0,0.00016438,2]
[401136735,1767963048678,-690.446226,0.00016438,2]
[401136736,1767963048687,-223.254713,0.00016438,2]
[401136737,1767963048698,-690.446226,0.00016438,2]
[401136738,1767963048708,-690.446226,0.00016438,2]
[401136739,1767963048717,-690.446226,0.00016438,2]
[401136740,1767963048727,-690.446226,0.00016438,2]
[401136741,1767963048736,-690.446226,0.00016438,2]
[401136742,1767963048749,-690.446226,0.00016438,2]
[401136743,1767963048760,-690.446226,0.00016438,2]
[401136744,1767963048770,-690.446226,0.00016438,2]
[401136745,1767963048780,-690.446226,0.00016438,2]
[401136746,1767963048790,-690.446226,0.00016438,2]
[401136747,1767963048799,-690.446226,0.00016438,2]
[401136748,1767963048809,-690.446236,0.00016438,2]
[401136749,1767963048818,-151.0,0.00016438,2]